Workbook

Sheet Izdevumi
B1: Pasākuma [Pasākuma nosaukums] budžets | H1: IZDEVUMI
B3: IZDEVUMI KOPĀ | G3: Plānotās izmaksas | H3: Faktiskie
G4: =SUM(C11,C19,C25,C32,G11,G19,G24) -> 882.00 EUR | H4: =SUM(D11,D19,D25,D32,H11,H19,H24) -> 333.00 EUR
B6: Vieta | C6: Plānotās izmaksas | D6: Faktiskie | F6: Dzērieni un uzkodas | G6: Plānotās izmaksas | H6: Faktiskie
B7: Telpas un zāles izmaksas | C7: 500.00 EUR | F7: Pārtika
B8: Vietas personāls | F8: Dzērieni | G8: 20.00 EUR
B9: Aprīkojums | F9: Galdauti | H9: 20.00 EUR
B10: Galdi un krēsli | F10: Personāla atalgojums un pateicības
B11: Kopsumma | C11: =SUBTOTAL(109,Tabula1[Plānotās izmaksas]) -> 500.00 EUR | D11: =SUBTOTAL(109,Tabula1[Faktiskie]) -> 0.00 EUR | F11: Kopsumma | G11: =SUBTOTAL(109,Tabula3[Plānotās izmaksas]) -> 20.00 EUR | H11: =SUBTOTAL(109,Tabula3[Faktiskie]) -> 20.00 EUR
B13: Dekorācijas | C13: Plānotās izmaksas | D13: Faktiskie | F13: Programma | G13: Plānotās izmaksas | H13: Faktiskie
B14: Ziedi | C14: 200.00 EUR | D14: 300.00 EUR | F14: Izpildītāji
B15: Sveces | F15: Skaļruņi | G15: 30.00 EUR
B16: Apgaismojums | F16: Ceļojums
B17: Baloni | F17: Viesnīca
B18: Papīra izejmateriāli | F18: Cits
B19: Kopsumma | C19: =SUBTOTAL(109,Tabula4[Plānotās izmaksas]) -> 200.00 EUR | D19: =SUBTOTAL(109,Tabula4[Faktiskie]) -> 300.00 EUR | F19: Kopsumma | G19: =SUBTOTAL(109,Tabula5[Plānotās izmaksas]) -> 30.00 EUR | H19: =SUBTOTAL(109,Tabula5[Faktiskie]) -> 0.00 EUR
B21: Reklāma | C21: Plānotās izmaksas | D21: Faktiskie | F21: Balvas | G21: Plānotās izmaksas | H21: Faktiskie
B22: Grafiskie darbi | F22: Lentes/plāksnes/balvas
B23: Kopēšana/drukāšana | C23: 20.00 EUR | F23: Dāvanas | G23: 100.00 EUR
B24: Pasta izdevumi | F24: Kopsumma | G24: =SUBTOTAL(109,Tabula7[Plānotās izmaksas]) -> 100.00 EUR | H24: =SUBTOTAL(109,Tabula7[Faktiskie]) -> 0.00 EUR
B25: Kopsumma | C25: =SUBTOTAL(109,Tabula6[Plānotās izmaksas]) -> 20.00 EUR | D25: =SUBTOTAL(109,Tabula6[Faktiskie]) -> 0.00 EUR
B27: Dažādi | C27: Plānotās izmaksas | D27: Faktiskie
B28: Tālrunis | D28: 13.00 EUR
B29: Transports | C29: 12.00 EUR
B30: Vēstuļpapīrs
B31: Faksa pakalpojumi
B32: Kopsumma | C32: =SUBTOTAL(109,Tabula8[Plānotās izmaksas]) -> 12.00 EUR | D32: =SUBTOTAL(109,Tabula8[Faktiskie]) -> 13.00 EUR

Sheet Ienākumi
B1: Pasākuma [Pasākuma nosaukums] budžets | G1: IENĀKUMI
B3: IENĀKUMU KOPĀ | F3: Plānotās izmaksas | G3: Faktiskie
F4: =SUM(F11, F18, F25, F33) -> 1,936.00 EUR | G4: =SUM(G11,G18,G25, G33) -> 1,831.00 EUR
B6: APMEKLĒTĀJI
B7: Plānotais sk. | C7: Faktiskais sk. | D7: Veids | E7: Cena | F7: Plānotie ienākumi | G7: Faktiskie ienākumi
B8: 300 | C8: 278 | D8: Pieaugušie @ | E8: 5.00 EUR | F8: =B8*E8 -> 1,500.00 EUR | G8: =C8*E8 -> 1,390.00 EUR
B9: 197 | C9: 195 | D9: Bērni @ | E9: 2.00 EUR | F9: =B9*E9 -> 394.00 EUR | G9: =C9*E9 -> 390.00 EUR
B10: 42 | C10: 51 | D10: Citi @ | E10: 1.00 EUR | F10: =B10*E10 -> 42.00 EUR | G10: =C10*E10 -> 51.00 EUR
B11: Kopsumma | F11: =SUBTOTAL(109,Tabula9[Plānotie ienākumi]) -> 1,936.00 EUR | G11: =SUBTOTAL(109,Tabula9[Faktiskie ienākumi]) -> 1,831.00 EUR
B13: REKLĀMAS PROGRAMMĀ
B14: Plānotais sk. | C14: Faktiskais sk. | D14: Veids | E14: Cena | F14: Plānotie ienākumi | G14: Faktiskie ienākumi
B15: 12 | D15: Titullapas @ | F15: =B15*E15 -> 0.00 EUR | G15: =C15*E15 -> 0.00 EUR
C16: 158 | D16: Puslapas @ | F16: =B16*E16 -> 0.00 EUR | G16: =C16*E16 -> 0.00 EUR
B17: 4 | D17: Ceturtdaļlapas @ | F17: =B17*E17 -> 0.00 EUR | G17: =C17*E17 -> 0.00 EUR
B18: Kopsumma | F18: =SUBTOTAL(109,Tabula10[Plānotie ienākumi]) -> 0.00 EUR | G18: =SUBTOTAL(109,Tabula10[Faktiskie ienākumi]) -> 0.00 EUR
B20: EKSPONĒTĀJI/PIEGĀDĀTĀJI
B21: Plānotais sk. | C21: Faktiskais sk. | D21: Veids | E21: Cena | F21: Plānotie ienākumi | G21: Faktiskie ienākumi
B22: 23 | D22: Lieli stendi @ | F22: =B22*E22 -> 0.00 EUR | G22: =C22*E22 -> 0.00 EUR
B23: 354 | D23: Vid. stendi @ | F23: =B23*E23 -> 0.00 EUR | G23: =C23*E23 -> 0.00 EUR
B24: 56 | D24: Mazi stendi @ | F24: =B24*E24 -> 0.00 EUR | G24: =C24*E24 -> 0.00 EUR
B25: Kopsumma | F25: =SUBTOTAL(109,Tabula11[Plānotie ienākumi]) -> 0.00 EUR | G25: =SUBTOTAL(109,Tabula11[Faktiskie ienākumi]) -> 0.00 EUR
B27: PREČU PĀRDOŠANA
B28: Plānotais sk. | C28: Faktiskais sk. | D28: Veids | E28: Cena | F28: Plānotie ienākumi | G28: Faktiskie ienākumi
D29: Preces @ | F29: =B29*E29 -> 0.00 EUR | G29: =C29*E29 -> 0.00 EUR
B30: 123 | D30: Preces @ | F30: =B30*E30 -> 0.00 EUR | G30: =C30*E30 -> 0.00 EUR
D31: Preces @ | F31: =B31*E31 -> 0.00 EUR | G31: =C31*E31 -> 0.00 EUR
B32: 13 | D32: Preces @ | F32: =B32*E32 -> 0.00 EUR | G32: =C32*E32 -> 0.00 EUR
B33: Kopsumma | F33: =SUBTOTAL(109,Tabula12[Plānotie ienākumi]) -> 0.00 EUR | G33: =SUBTOTAL(109,Tabula12[Faktiskie ienākumi]) -> 0.00 EUR

Sheet Peļņas vai zaud. kopsavilkums
B1: Pasākuma [Pasākuma nosaukums] budžets | G1: PEĻŅA
G2: Zaudējumu kopsavilkums
C5: Plānotās izmaksas | D5: Faktiskie
B6: Ienākumu kopā | C6: =Ienākumi!F4 -> 1,936.00 EUR | D6: =Ienākumi!G4 -> 1,831.00 EUR
B7: Izdevumi kopā | C7: =Izdevumi!G4 -> 882.00 EUR | D7: =Izdevumi!H4 -> 333.00 EUR
B9: Peļņas (vai zaudējumu) kopsumma | C9: =C6-C7 -> 1,054.00 EUR | D9: =D6-D7 -> 1,498.00 EUR
